fUST/lending_fUST_20240412
["ID","MTS","AMOUNT","RATE_DAILY","PERIOD"]
[322285648,1712933443353,-500.0,0.00054794,120]
[322285650,1712933443362,-500.0,0.00054794,120]
[322285652,1712933443372,-500.0,0.00054794,120]
[322285654,1712933443382,-500.0,0.00054794,120]
[322285656,1712933443392,-1110.93,0.00054794,120]
[322285658,1712933443401,-786.4,0.00054794,120]
[322285660,1712933443411,-986.72,0.00054794,120]
[322285662,1712933443421,-260.30017529,0.00054794,120]
[322285664,1712933443431,-500.0,0.00054794,120]
[322285666,1712933443440,-500.0,0.00054794,120]
[322285669,1712933443450,-500.0,0.00054794,120]
[322285670,1712933443460,-465.78694581,0.00054794,120]
[322285672,1712933443470,-500.0,0.00054794,120]
[322285675,1712933443479,-500.0,0.00054794,120]
[322285677,1712933443489,-500.0,0.00054794,120]
[322285679,1712933443499,-500.0,0.00054794,120]
[322285681,1712933443510,-193.08517013,0.00054794,120]
[322285682,1712933443523,-500.0,0.00054794,120]
[322285684,1712933443532,-500.0,0.00054794,120]
[322285686,1712933443542,-737.29,0.00054794,120]
[322285688,1712933443551,-500.0,0.00054794,120]
[322285690,1712933443560,-500.0,0.00054794,120]
[322285692,1712933443570,-500.0,0.00054794,120]
[322285695,1712933443579,-500.0,0.00054794,120]
[322285697,1712933443588,-500.0,0.00054794,120]
[322285698,1712933443598,-500.0,0.00054794,120]
[322285701,1712933443608,-500.0,0.00054794,120]
[322285703,1712933443622,-500.0,0.00054794,120]
[322285705,1712933443631,-500.0,0.00054794,120]
[322285707,1712933443640,-500.0,0.00054794,120]
[322285709,1712933443649,-500.0,0.00054794,120]
[322285711,1712933443658,-500.0,0.00054794,120]
[322285713,1712933443667,-500.0,0.00054794,120]
[322285714,1712933443677,-500.0,0.00054794,120]
[322285716,1712933443687,-500.0,0.00054794,120]
[322285718,1712933443696,-500.0,0.00054794,120]
[322285721,1712933443706,-500.0,0.00054794,120]
[322285722,1712933443716,-252.61919789,0.00054794,120]
[322285724,1712933443726,-500.0,0.00054794,120]
[322285727,1712933443736,-500.0,0.00054794,120]
[322285728,1712933443750,-500.0,0.00054794,120]
[322285731,1712933443762,-361.61812512,0.00054794,120]
[322285733,1712933443772,-500.0,0.00054794,120]
[322285734,1712933443782,-500.0,0.00054794,120]
[322285737,1712933443794,-518.5419639,0.00054794,120]
[322285739,1712933443803,-500.0,0.00054794,120]
[322285741,1712933443812,-500.0,0.00054794,120]
[322285742,1712933443822,-500.0,0.00054794,120]
[322285745,1712933443832,-500.0,0.00054794,120]
[322285746,1712933443843,-500.0,0.00054794,120]
[322285748,1712933443853,-297.1663235,0.00054794,120]
[322285750,1712933443862,-500.0,0.00054794,120]
[322285752,1712933443872,-500.0,0.00054794,120]
[322285754,1712933443882,-500.0,0.00054794,120]
[322285756,1712933443891,-807.3,0.00054794,120]
[322285758,1712933443901,-500.0,0.00054794,120]
[322285760,1712933443911,-503.80975623,0.00054794,120]
[322285762,1712933443920,-500.0,0.00054794,120]
[322285764,1712933443930,-500.0,0.00054794,120]
[322285766,1712933443940,-500.0,0.00054794,120]
[322285768,1712933443949,-500.0,0.00054794,120]
[322285770,1712933443958,-659.39,0.00054794,120]
[322285772,1712933443968,-1151.75,0.00054794,120]
[322285774,1712933443977,-500.0,0.00054794,120]
[322285776,1712933443986,-502.06828708,0.00054794,120]
[322285778,1712933443996,-500.0,0.00054794,120]
[322285780,1712933444005,-497.82549668,0.00054794,120]
[322285782,1712933444015,-500.0,0.00054794,120]
[322285784,1712933444024,-500.0,0.00054794,120]
[322285786,1712933444033,-500.0,0.00054794,120]
[322285788,1712933444042,-529.04688503,0.00054794,120]
[322285790,1712933444051,-500.0,0.00054794,120]
[322285791,1712933444061,-530.06,0.00054794,120]
[322285793,1712933444070,-500.0,0.00054794,120]
[322285795,1712933444079,-500.0,0.00054794,120]
[322285797,1712933444165,-500.0,0.00054794,120]
[322285799,1712933444174,-500.0,0.00054794,120]
[322285801,1712933444184,-881.28,0.00054794,120]
[322285803,1712933444194,-374.14526902,0.00054794,120]
[322285805,1712933444203,-500.0,0.00054794,120]
[322285807,1712933444212,-500.0,0.00054794,120]
[322285809,1712933444222,-500.0,0.00054794,120]
[322285811,1712933444231,-500.0,0.00054794,120]
[322285813,1712933444240,-801.46,0.00054794,120]
[322285815,1712933444249,-12199.71,0.00054794,90]
[322285817,1712933444258,-500.0,0.00054794,120]
[322285819,1712933444270,-500.0,0.00054794,120]
[322285821,1712933444279,-232.031836,0.00054794,7]
[322285823,1712933444288,-501.20453944,0.00054794,120]
[322285825,1712933444297,-232.031836,0.00054794,7]
[322285827,1712933444306,-577.3584247,0.00054794,120]
[322285829,1712933444315,-500.0,0.00054794,120]
[322285831,1712933444324,-300.0,0.00054794,7]
[322285833,1712933444333,-500.0,0.00054794,120]
[322285835,1712933444343,-2065.0,0.00054794,21]
[322285837,1712933444352,-351.08884706,0.00054794,120]
[322285839,1712933444361,-500.0,0.00054794,120]
[322285841,1712933444370,-500.0,0.00054794,120]
[322285843,1712933444379,-500.0,0.00054794,120]
[322285845,1712933444389,-505.72965675,0.00054794,120]
[322285847,1712933444397,-500.0,0.00054794,120]
[322285849,1712933444407,-500.0,0.00054794,120]
[322285851,1712933444416,-1220.65,0.00054794,120]
[322285853,1712933444426,-500.0,0.00054794,120]
[322285855,1712933444435,-1000.0,0.00054794,120]
[322285857,1712933444444,-500.0,0.00054794,120]
[322285859,1712933444453,-556.35122411,0.00054794,120]
[322285861,1712933444462,-10083.82,0.00054794,120]
[322285863,1712933444471,-500.0,0.00054794,120]
[322285865,1712933444480,-500.0,0.00054794,120]
[322285867,1712933444490,-500.0,0.00054794,120]
[322285869,1712933444499,-500.0,0.00054794,120]
[322285871,1712933444508,-500.0,0.00054794,120]
[322285873,1712933444522,-241.59,0.00054794,120]
[322285875,1712933444533,-500.0,0.00054794,120]
[322285877,1712933444543,-1594.84,0.00054794,120]
[322285879,1712933444554,-500.0,0.00054794,120]
[322285881,1712933444566,-500.0,0.00054794,120]
[322285882,1712933444577,-3328.81,0.00054794,120]
[322285885,1712933444588,-500.0,0.00054794,120]
[322285887,1712933444599,-3666.68,0.00054794,120]
[322285888,1712933444610,-500.0,0.00054794,60]
[322285890,1712933444621,-500.0,0.00054794,120]
[322285892,1712933444632,-500.0,0.00054794,120]
[322285894,1712933444642,-428.44114347,0.00054794,120]
[322285896,1712933444653,-519.79491341,0.00054794,120]
[322285898,1712933444664,-1847.37,0.00054794,120]
[322285901,1712933444676,-500.0,0.00054794,120]
[322285902,1712933444686,-500.0,0.00054794,120]
[322285905,1712933444697,-151.0,0.00054794,7]
[322285906,1712933444707,-542.06,0.00054794,120]
[322285908,1712933444718,-767.28,0.00054794,120]
[322285910,1712933444730,-259.92770034,0.00054794,120]
[322285912,1712933444740,-338.76934425,0.00054794,120]
[322285915,1712933444752,-218.78523006,0.00054794,120]
[322285917,1712933444764,-532.65883253,0.00054794,120]
[322285919,1712933444774,-500.0,0.00054794,120]
[322285921,1712933444785,-1233.95,0.00054794,120]
[322285923,1712933444794,-500.0,0.00054794,120]
[322285925,1712933444804,-500.0,0.00054794,120]
[322285927,1712933444815,-500.0,0.00054794,120]
[322285928,1712933444826,-500.0,0.00054794,120]
[322285930,1712933444836,-500.0,0.00054794,120]
[322285932,1712933444848,-500.0,0.00054794,120]
[322285935,1712933444859,-500.0,0.00054794,120]
[322285936,1712933444869,-2212.62,0.00054794,120]
[322285939,1712933444884,-1750.03,0.00054794,120]
[322285940,1712933444895,-849.45,0.00054794,120]
[322285942,1712933444905,-151.0,0.00054794,7]
[322285944,1712933444916,-500.0,0.00054794,120]
[322285946,1712933444926,-500.0,0.00054794,120]
[322285948,1712933444937,-500.0,0.00054794,120]
[322285950,1712933444949,-1379.21,0.00054794,120]
[322285952,1712933444959,-500.0,0.00054794,120]
[322285954,1712933444969,-500.0,0.00054794,120]
[322285956,1712933444980,-500.0,0.00054794,120]
[322285958,1712933444990,-500.0,0.00054794,120]
[322285960,1712933444999,-1779.63,0.00054794,120]
[322285962,1712933445009,-500.0,0.00054794,120]
[322285965,1712933445020,-500.0,0.00054794,120]
[322285966,1712933445030,-500.0,0.00054794,120]
[322285968,1712933445039,-500.0,0.00054794,120]
[322285970,1712933445048,-507.03594079,0.00054794,120]
[322285972,1712933445057,-1013.83,0.00054794,120]
[322285975,1712933445068,-500.0,0.00054794,120]
[322285977,1712933445078,-158.09608025,0.00054794,120]
[322285979,1712933445087,-2158.25,0.00054794,120]
[322285981,1712933445097,-845.8,0.00054794,120]
[322285982,1712933445106,-1215.82,0.00054794,120]
[322285984,1712933445116,-440.23207232,0.00054794,120]
[322285986,1712933445125,-500.0,0.00054794,120]
[322285988,1712933445134,-500.0,0.00054794,120]
[322285990,1712933445143,-292.63875805,0.00054794,120]
[322285992,1712933445153,-500.0,0.00054794,120]
[322285994,1712933445162,-500.0,0.00054794,2]
[322285996,1712933445171,-1514.16,0.00054794,120]
[322285998,1712933445180,-511.86025329,0.00054794,120]
[322286000,1712933445189,-188.88867484,0.00054795,120]
[322286002,1712933445198,-188.88867484,0.00054795,120]
[322286004,1712933445208,-189.38,0.00054795,120]
[322286006,1712933445216,-167.67423362,0.00054795,120]
[322286008,1712933445225,-167.67423362,0.00054795,120]
[322286010,1712933445234,-167.67423362,0.00054795,120]
[322286012,1712933445243,-167.67423362,0.00054795,120]
[322286014,1712933445253,-167.67423362,0.00054795,120]
[322286016,1712933445263,-167.67423362,0.00054795,120]
[322286018,1712933445272,-167.67423362,0.00054795,120]
[322286020,1712933445281,-167.67423362,0.00054795,120]
[322286022,1712933445290,-167.67423362,0.00054795,120]
[322286024,1712933445299,-167.67423362,0.00054795,120]
[322286026,1712933445308,-167.67423362,0.00054795,120]
[322286028,1712933445317,-167.67423362,0.00054795,120]
[322286030,1712933445326,-167.67423362,0.00054795,120]
[322286033,1712933445334,-167.67423362,0.00054795,120]
[322286035,1712933445343,-167.67423362,0.00054795,120]
[322286037,1712933445352,-167.67423362,0.00054795,120]
[322286039,1712933445362,-167.67423362,0.00054795,120]
[322286042,1712933445371,-167.67423362,0.00054795,120]
[322286044,1712933445379,-167.67423362,0.00054795,120]
[322286047,1712933445388,-168.17,0.00054795,120]
[322286049,1712933445397,-670.77193449,0.00054795,120]
[322286051,1712933445406,-670.77193449,0.00054795,120]
[322286053,1712933445415,-670.77193449,0.00054795,120]
[322286056,1712933445424,-670.77193449,0.00054795,120]
[322286059,1712933445433,-670.77193449,0.00054795,120]
[322286062,1712933445442,-670.77193449,0.00054795,120]
[322286065,1712933445451,-670.77193449,0.00054795,120]
[322286068,1712933445460,-670.77193449,0.00054795,120]
[322286071,1712933445469,-670.77193449,0.00054795,120]
[322286074,1712933445478,-670.77193449,0.00054795,120]
[322286077,1712933445487,-670.77193449,0.00054795,120]
[322286080,1712933445497,-670.77193449,0.00054795,120]
[322286083,1712933445506,-670.77193449,0.00054795,120]
[322286088,1712933445517,-670.77193449,0.00054795,120]
[322286091,1712933445527,-670.77193449,0.00054795,120]
[322286092,1712933445536,-670.77193449,0.00054795,120]
[322286095,1712933445546,-670.77193449,0.00054795,120]
[322286098,1712933445555,-670.77193449,0.00054795,120]
[322286102,1712933445565,-670.77193449,0.00054795,120]
[322286104,1712933445574,-671.27,0.00054795,120]
[322286107,1712933445583,-151.5905511,0.00054795,120]
[322286110,1712933445593,-151.5905511,0.00054795,120]
[322286114,1712933445602,-151.5905511,0.00054795,120]
[322286118,1712933445612,-151.5905511,0.00054795,120]
[322286120,1712933445621,-151.5905511,0.00054795,120]
[322286122,1712933445631,-151.5905511,0.00054795,120]
[322286125,1712933445640,-151.5905511,0.00054795,120]
[322286128,1712933445650,-151.5905511,0.00054795,120]
[322286131,1712933445659,-151.5905511,0.00054795,120]
[322286134,1712933445669,-152.09,0.00054795,120]
[322286138,1712933445678,-303.2561022,0.00054795,120]
[322286142,1712933445688,-303.2561022,0.00054795,120]
[322286144,1712933445698,-303.2561022,0.00054795,120]
[322286147,1712933445707,-303.2561022,0.00054795,120]
[322286150,1712933445717,-303.2561022,0.00054795,120]
[322286152,1712933445726,-303.2561022,0.00054795,120]
[322286156,1712933445735,-303.2561022,0.00054795,120]
[322286160,1712933445746,-303.2561022,0.00054795,120]
[322286161,1712933445759,-303.2561022,0.00054795,120]
[322286165,1712933445771,-303.2561022,0.00054795,120]
[322286167,1712933445780,-303.2561022,0.00054795,120]
[322286170,1712933445790,-303.2561022,0.00054795,120]
[322286173,1712933445799,-303.2561022,0.00054795,120]
[322286176,1712933445809,-303.2561022,0.00054795,120]
[322286179,1712933445819,-303.2561022,0.00054795,120]
[322286182,1712933445830,-303.2561022,0.00054795,120]
[322286185,1712933445839,-303.2561022,0.00054795,120]
[322286187,1712933445850,-303.2561022,0.00054795,120]
[322286189,1712933445860,-303.2561022,0.00054795,120]
[322286191,1712933445870,-303.75,0.00054795,120]
[322286193,1712933445879,-1799.97122019,0.000557,120]
[322286195,1712933445889,-289.314665,0.00056236,2]
[322286197,1712933445899,-200.361075,0.00056236,2]
[322286199,1712933445909,-1000.0,0.00056357,10]
[322286201,1712933445919,-500.0,0.00056712,120]
[322286203,1712933445929,-500.0,0.00056712,120]
[322286205,1712933445938,-500.0,0.00056712,120]
[322286207,1712933445948,-628.21,0.00056712,120]
[322286209,1712933445957,-500.0,0.00056712,120]
[322286211,1712933445967,-500.0,0.00056712,120]
[322286213,1712933445976,-500.0,0.00056712,120]
[322286215,1712933445987,-574.20450814,0.00056712,120]
[322286218,1712933445998,-500.0,0.00056712,120]
[322286226,1712933446075,-190.64638675,0.00056712,120]
[322286228,1712933446085,-500.0,0.00056712,120]
[322286230,1712933446095,-500.0,0.00056712,120]
[322286232,1712933446104,-500.0,0.00056712,120]
[322286234,1712933446113,-503.14677591,0.00056712,120]
[322286236,1712933446123,-500.0,0.00056712,120]
[322286238,1712933446134,-500.0,0.00056712,120]
[322286240,1712933446143,-500.0,0.00056712,120]
[322286242,1712933446151,-500.0,0.00056712,120]
[322286244,1712933446161,-481.4714267,0.00056712,120]
[322286246,1712933446170,-500.0,0.00056712,120]
[322286248,1712933446179,-507.65843774,0.00056712,120]
[322286250,1712933446188,-500.0,0.00056712,120]
[322286252,1712933446198,-500.0,0.00056712,120]
[322286254,1712933446207,-756.0,0.00056712,120]
[322286256,1712933446216,-500.0,0.00056712,120]
[322286258,1712933446226,-500.0,0.00056712,120]
[322286260,1712933446235,-500.0,0.00056712,120]
[322286262,1712933446244,-520.74136323,0.00056712,120]
[322286264,1712933446254,-500.0,0.00056712,120]
[322286266,1712933446263,-511.0474743,0.00056712,120]
[322286268,1712933446272,-295.04346083,0.00056712,120]
[322286270,1712933446281,-500.0,0.00056712,120]
[322286272,1712933446289,-1000.0,0.00056712,7]
[322286274,1712933446298,-500.0,0.00056712,120]
[322286276,1712933446307,-500.0,0.00056712,120]
[322286278,1712933446316,-519.68,0.00056712,120]
[322286280,1712933446325,-500.0,0.00056712,120]
[322286282,1712933446334,-500.0,0.00056712,120]
[322286284,1712933446343,-500.0,0.00056712,120]
[322286286,1712933446353,-500.0,0.00056712,120]
[322286288,1712933446362,-422.97323723,0.00056712,120]
[322286290,1712933446371,-500.0,0.00056712,120]
[322286292,1712933446380,-500.0,0.00056712,120]
[322286294,1712933446389,-500.0,0.00056712,120]
[322286296,1712933446399,-500.0,0.00056712,120]
[322286298,1712933446408,-500.0,0.00056712,120]
[322286300,1712933446417,-503.85222214,0.00056712,120]
[322286302,1712933446426,-500.0,0.00056712,120]
[322286304,1712933446435,-500.0,0.00056712,120]
[322286306,1712933446444,-500.0,0.00056712,120]
[322286308,1712933446453,-500.0,0.00056712,120]
[322286310,1712933446462,-615.32305045,0.00056712,120]
[322286312,1712933446472,-527.88170902,0.00056712,120]
[322286314,1712933446481,-500.0,0.00056712,120]
[322286316,1712933446490,-500.0,0.00056712,120]
[322286318,1712933446499,-500.0,0.00056712,120]
[322286320,1712933446508,-500.0,0.00056712,120]
[322286322,1712933446519,-500.0,0.00056712,120]
[322286324,1712933446528,-500.0,0.00056712,120]
[322286326,1712933446538,-500.0,0.00056712,120]
[322286328,1712933446547,-1110.93,0.00056712,120]
[322286330,1712933446557,-786.4,0.00056712,120]
[322286332,1712933446566,-986.72,0.00056712,120]
[322286334,1712933446575,-506.0829126,0.00056712,120]
[322286336,1712933446585,-500.0,0.00056712,120]
[322286338,1712933446594,-500.0,0.00056712,120]
[322286340,1712933446605,-737.29,0.00056712,120]
[322286342,1712933446616,-500.0,0.00056712,120]
[322286344,1712933446626,-500.0,0.00056712,120]
[322286346,1712933446635,-500.0,0.00056712,120]
[322286348,1712933446644,-500.0,0.00056712,120]
[322286350,1712933446653,-500.0,0.00056712,120]
[322286352,1712933446662,-500.0,0.00056712,120]
[322286354,1712933446671,-500.0,0.00056712,120]
[322286356,1712933446680,-500.0,0.00056712,120]
[322286358,1712933446689,-500.0,0.00056712,120]
[322286360,1712933446698,-500.0,0.00056712,120]
[322286362,1712933446708,-500.0,0.00056712,120]
[322286364,1712933446717,-500.0,0.00056712,120]
[322286366,1712933446726,-500.0,0.00056712,120]
[322286368,1712933446736,-317.77372815,0.00056712,120]
[322286370,1712933446746,-508.37236142,0.00056712,120]
[322286372,1712933446756,-347.84297722,0.00056712,120]
[322286374,1712933446767,-500.0,0.00056712,120]
[322286376,1712933446775,-500.0,0.00056712,120]
[322286378,1712933446788,-807.3,0.00056712,120]
[322286380,1712933446798,-500.0,0.00056712,120]
[322286382,1712933446808,-500.0,0.00056712,120]
[322286383,1712933446819,-659.39,0.00056712,120]
[322286385,1712933446829,-1151.75,0.00056712,120]
[322286387,1712933446839,-288.52461699,0.00056712,120]
[322286389,1712933446848,-530.06,0.00056712,120]
[322286392,1712933446858,-500.0,0.00056712,120]
[322286393,1712933446868,-504.97991679,0.00056712,120]
[322286395,1712933446878,-500.0,0.00056712,120]
[322286397,1712933446886,-881.28,0.00056712,120]
[322286399,1712933446896,-801.46,0.00056712,120]
[322286401,1712933446906,-12199.71,0.00056712,90]
[322286403,1712933446915,-417.90975819,0.00056712,120]
[322286405,1712933446924,-300.0,0.00056712,7]
[322286407,1712933446933,-2065.0,0.00056712,21]
[322286409,1712933446943,-500.0,0.00056712,120]
[322286411,1712933446954,-500.0,0.00056712,120]
[322286413,1712933446964,-500.0,0.00056712,120]
[322286415,1712933446973,-1220.65,0.00056712,120]
[322286417,1712933446987,-500.0,0.00056712,120]
[322286419,1712933446997,-10083.82,0.00056712,120]
[322286421,1712933447010,-1594.84,0.00056712,120]
[322286423,1712933447020,-500.0,0.00056712,120]
[322286425,1712933447030,-500.0,0.00056712,120]
[322286427,1712933447041,-3328.81,0.00056712,120]
[322286429,1712933447050,-3666.68,0.00056712,120]
[322286431,1712933447062,-500.0,0.00056712,120]
[322286433,1712933447072,-500.0,0.00056712,60]
[322286435,1712933447081,-500.0,0.00056712,120]
[322286437,1712933447090,-1847.37,0.00056712,120]
[322286439,1712933447099,-500.0,0.00056712,120]
[322286441,1712933447109,-436.50670645,0.00056712,120]
[322286443,1712933447118,-542.06,0.00056712,120]
[322286445,1712933447127,-767.28,0.00056712,120]
[322286447,1712933447136,-500.0,0.00056712,120]
[322286449,1712933447145,-1233.95,0.00056712,120]
[322286451,1712933447154,-500.0,0.00056712,120]
[322286453,1712933447163,-500.0,0.00056712,120]
[322286455,1712933447173,-513.31933967,0.00056712,120]
[322286457,1712933447181,-500.0,0.00056712,120]
[322286459,1712933447191,-500.0,0.00056712,120]
[322286460,1712933447200,-500.0,0.00056712,120]
[322286462,1712933447209,-2212.62,0.00056712,120]
[322286464,1712933447218,-500.0,0.00056712,120]
[322286466,1712933447228,-1750.03,0.00056712,120]
[322286468,1712933447237,-849.45,0.00056712,120]
[322286470,1712933447247,-500.0,0.00056712,120]
[322286472,1712933447256,-500.0,0.00056712,120]
[322286474,1712933447265,-500.0,0.00056712,120]
[322286476,1712933447275,-1379.21,0.00056712,120]
[322286478,1712933447284,-500.0,0.00056712,120]
[322286480,1712933447294,-500.0,0.00056712,120]
[322286482,1712933447303,-500.80320733,0.00056712,120]
[322286484,1712933447312,-500.0,0.00056712,120]
[322286486,1712933447322,-1779.63,0.00056712,120]
[322286488,1712933447331,-500.0,0.00056712,120]
[322286490,1712933447340,-500.0,0.00056712,120]
[322286492,1712933447349,-500.0,0.00056712,120]
[322286494,1712933447358,-500.0,0.00056712,120]
[322286496,1712933447367,-500.0,0.00056712,120]
[322286497,1712933447377,-1013.83,0.00056712,120]
[322286499,1712933447386,-2158.25,0.00056712,120]
[322286501,1712933447395,-845.8,0.00056712,120]
[322286503,1712933447405,-1215.82,0.00056712,120]
[322286505,1712933447414,-500.0,0.00056712,120]
[322286507,1712933447424,-500.0,0.00056712,120]
[322286509,1712933447433,-500.0,0.00056712,2]
[322286511,1712933447443,-1514.16,0.00056712,120]
[322286513,1712933447452,-6198.0,0.00056933,10]
[322286515,1712933447461,-200.0,0.00057172,120]
[322286517,1712933447470,-164.257374,0.00057285,2]
[322286519,1712933447480,-500.0,0.0005863,120]
[322286521,1712933447489,-551.81129447,0.0005863,120]
[322286523,1712933447498,-628.21,0.0005863,120]
[322286525,1712933447507,-500.0,0.0005863,120]
[322286527,1712933447517,-500.0,0.0005863,120]
[322286529,1712933447526,-500.0,0.0005863,120]
[322286531,1712933447535,-500.0,0.0005863,120]
[322286533,1712933447544,-500.0,0.0005863,120]
[322286535,1712933447553,-500.0,0.0005863,120]
[322286537,1712933447563,-500.0,0.0005863,120]
[322286539,1712933447572,-500.0,0.0005863,120]
[322286541,1712933447581,-500.0,0.0005863,120]
[322286543,1712933447590,-500.0,0.0005863,120]
[322286545,1712933447599,-500.0,0.0005863,120]
[322286547,1712933447608,-500.0,0.0005863,120]
[322286548,1712933447621,-500.0,0.0005863,120]
[322286550,1712933447630,-756.0,0.0005863,120]
[322286552,1712933447639,-500.0,0.0005863,120]
[322286554,1712933447649,-500.0,0.0005863,120]
[322286556,1712933447658,-500.0,0.0005863,120]
[322286558,1712933447667,-500.0,0.0005863,120]
[322286560,1712933447676,-1000.0,0.0005863,7]
[322286562,1712933447686,-500.0,0.0005863,120]
[322286564,1712933447695,-500.0,0.0005863,120]
[322286566,1712933447704,-500.0,0.0005863,120]
[322286574,1712933447771,-500.0,0.0005863,120]
[322286576,1712933447787,-500.0,0.0005863,120]
[322286578,1712933447797,-500.0,0.0005863,120]
[322286580,1712933447806,-500.0,0.0005863,120]
[322286582,1712933447815,-500.0,0.0005863,120]
[322286584,1712933447825,-500.0,0.0005863,120]
[322286586,1712933447835,-500.0,0.0005863,120]
[322286588,1712933447845,-500.0,0.0005863,120]
[322286590,1712933447854,-500.0,0.0005863,120]
[322286592,1712933447864,-500.0,0.0005863,120]
[322286594,1712933447874,-500.0,0.0005863,120]
[322286595,1712933447884,-500.0,0.0005863,120]
[322286597,1712933447894,-512.15117389,0.0005863,120]
[322286599,1712933447903,-500.0,0.0005863,120]
[322286601,1712933447913,-500.0,0.0005863,120]
[322286603,1712933447924,-500.0,0.0005863,120]
[322286605,1712933447934,-1110.93,0.0005863,120]
[322286607,1712933447944,-786.4,0.0005863,120]
[322286609,1712933447954,-986.72,0.0005863,120]
[322286611,1712933447964,-737.29,0.0005863,120]
[322286613,1712933447974,-500.0,0.0005863,120]
[322286615,1712933447983,-500.0,0.0005863,120]
[322286617,1712933447993,-500.0,0.0005863,120]
[322286619,1712933448002,-500.0,0.0005863,120]
[322286621,1712933448014,-500.0,0.0005863,120]
[322286623,1712933448030,-500.0,0.0005863,120]
[322286625,1712933448039,-500.0,0.0005863,120]
[322286627,1712933448053,-573.03156331,0.0005863,120]
[322286629,1712933448063,-500.0,0.0005863,120]
[322286631,1712933448074,-500.0,0.0005863,120]
[322286633,1712933448085,-500.0,0.0005863,120]
[322286635,1712933448095,-807.3,0.0005863,120]
[322286637,1712933448105,-500.0,0.0005863,120]
[322286639,1712933448117,-500.0,0.0005863,120]
[322286641,1712933448128,-659.39,0.0005863,120]
[322286643,1712933448138,-1151.75,0.0005863,120]
[322286645,1712933448148,-530.06,0.0005863,120]
[322286647,1712933448159,-500.0,0.0005863,120]
[322286649,1712933448169,-881.28,0.0005863,120]
[322286651,1712933448178,-801.46,0.0005863,120]
[322286653,1712933448188,-12199.71,0.0005863,90]
[322286654,1712933448197,-300.0,0.0005863,7]
[322286656,1712933448206,-2065.0,0.0005863,21]
[322286658,1712933448216,-500.0,0.0005863,120]
[322286660,1712933448226,-1220.65,0.0005863,120]
[322286662,1712933448236,-500.0,0.0005863,120]
[322286664,1712933448246,-10083.82,0.0005863,120]
[322286666,1712933448257,-1594.84,0.0005863,120]
[322286668,1712933448269,-500.0,0.0005863,120]
[322286670,1712933448279,-500.0,0.0005863,120]
[322286672,1712933448289,-3328.81,0.0005863,120]
[322286674,1712933448298,-3666.68,0.0005863,120]
[322286676,1712933448307,-404.421255,0.0005863,120]
[322286678,1712933448316,-500.0,0.0005863,60]
[322286680,1712933448326,-500.0,0.0005863,120]
[322286682,1712933448335,-1847.37,0.0005863,120]
[322286684,1712933448345,-500.0,0.0005863,120]
[322286686,1712933448354,-542.06,0.0005863,120]
[322286688,1712933448363,-767.28,0.0005863,120]
[322286690,1712933448373,-500.0,0.0005863,120]
[322286692,1712933448383,-1233.95,0.0005863,120]
[322286694,1712933448393,-492.18490399,0.0005863,120]
[322286696,1712933448402,-500.0,0.0005863,120]
[322286698,1712933448411,-500.0,0.0005863,120]